[Event "XXXVIII Benasque Open 2018"]
[Site "Benasque"]
[Date "2018.07.10"]
[Round "6"]
[White "Vocaturo, Daniele"]
[Black "Cruz Lledo, Pablo"]
[Result "1-0"]
[ECO "A40"]
[WhiteElo "2609"]
[BlackElo "2443"]
[Annotator "ChessBase"]
[PlyCount "101"]
[EventDate "2018.07.05"]
[EventType "swiss"]
[EventCountry "ESP"]
[SourceTitle "playchess.com"]
[Source "ChessBase"]
[SourceQuality "1"]
[TimeControl "5400+30"]

1. e4 {[%emt 0:00:00]} g6 {[%emt 0:01:20]} 2. d4 {[%emt 0:00:23]} Bg7 {[%emt 0:00:05]} 3. c4 {[%emt 0:01:59]} e6 {[%emt 0:00:08]} 4. Nc3 {[%emt 0:02:09]} Ne7 {[%emt 0:01:30]} 5. Bg5 {[%emt 0:05:04]} h6 {[%emt 0:00:05]} 6. Bh4 {[%emt 0:09:03]} g5 {[%emt 0:08:30]} 7. Bg3 {[%emt 0:00:16]} Ng6 {[%emt 0:00:12]} 8. Nf3 {[%emt 0:04:42]} d6 {[%emt 0:05:47]} 9. h4 {[%emt 0:05:06]} g4 {[%emt 0:02:21]} 10. h5 {[%emt 0:04:44]} gxf3 {[%emt 0:00:14]} 11. hxg6 {[%emt 0:00:06]} fxg6 {[%emt 0:00:09]} 12. Qxf3 {[%emt 0:01:14]} Bxd4 {[%emt 0:01:45]} 13. e5 {[%emt 0:01:03]} Nc6 {[%emt 0:12:19]} 14. exd6 {[%emt 0:09:11]} cxd6 {[%emt 0:01:33]} 15. Bd3 {[%emt 0:11:35]} Ne5 {[%emt 0:10:15]} 16. Bxe5 {[%emt 0:04:44]} Bxe5 {[%emt 0:00:59]} 17. Bxg6+ {[%emt 0:02:33]} Kd7 {[%emt 0:00:08]} 18. Rh5 {[%emt 0:04:55]} Rf8 {[%emt 0:03:14]} 19. Qd3 {[%emt 0:02:52]} Kc7 {[%emt 0:08:32]} 20. O-O-O {[%emt 0:02:43]} Qf6 {[%emt 0:07:23]} 21. g3 {[%emt 0:05:18]} Rd8 {[%emt 0:05:49]} 22. f4 {[%emt 0:01:46]} Bxc3 {[%emt 0:00:13]} 23. bxc3 {[%emt 0:00:04]} a5 {[%emt 0:05:19]} 24. Rxh6 {[%emt 0:02:00]} Ra6 {[%emt 0:01:45]} 25. Rh7+ {[%emt 0:00:45]} Rd7 {[%emt 0:00:19]} 26. Rdh1 {[%emt 0:02:20]} d5 {[%emt 0:03:56]} 27. Be8 {[%emt 0:04:53]} Rxh7 {[%emt 0:01:03]} 28. Rxh7+ {[%emt 0:00:01]} Kb8 {[%emt 0:00:14]} 29. Bb5 {[%emt 0:00:14]} Rd6 {[%emt 0:00:34]} 30. c5 {[%emt 0:00:28]} Rd8 {[%emt 0:01:57]} 31. c6 {[%emt 0:00:47]} Rh8 {[%emt 0:03:37]} 32. c7+ {[%emt 0:01:18]} Ka7 {[%emt 0:00:05]} 33. Rxh8 {[%emt 0:02:37]} Qxh8 {[%emt 0:00:07]} 34. Qd4+ {[%emt 0:02:23]} Qxd4 {[%emt 0:00:09]} 35. cxd4 Kb6 {[%emt 0:00:11]} 36. g4 {[%emt 0:00:43]} Kxc7 {[%emt 0:08:22]} 37. g5 {[%emt 0:00:53]} Kd8 {[%emt 0:01:13]} 38. Kb2 {[%emt 0:01:37]} Bd7 {[%emt 0:00:39]} 39. g6 {[%emt 0:01:51]} Be8 {[%emt 0:00:02]} 40. g7 {[%emt 0:00:26]} Bf7 {[%emt 0:00:01]} 41. Bd3 {[%emt 0:00:55]} Bg8 {[%emt 0:00:23]} 42. Kb3 {[%emt 0:00:11]} Kc7 {[%emt 0:04:42]} 43. Ka4 {[%emt 0:00:04]} b6 {[%emt 0:00:38]} 44. Kb5 {[%emt 0:01:11]} Kb7 {[%emt 0:00:09]} 45. Bg6 {[%emt 0:00:15]} Kc7 {[%emt 0:00:42]} 46. Ka6 {[%emt 0:00:10]} Kc6 {[%emt 0:00:17]} 47. a4 {[%emt 0:00:29]} Kc7 {[%emt 0:00:08]} 48. Ka7 {[%emt 0:00:27]} Kc6 {[%emt 0:00:06]} 49. Kb8 {[%emt 0:00:53]} b5 {[%emt 0:04:09]} 50. Be8+ {[%emt 0:00:05]} Kd6 {[%emt 0:00:19]} 51. Bxb5 {[%emt 0:00:20]} 1-0

[Event "XXXVIII Benasque Open 2018"]
[Site "Benasque"]
[Date "2018.07.10"]
[Round "6"]
[White "Plazuelo Pascual, Juan"]
[Black "Chigaev, Maksim"]
[Result "1/2-1/2"]
[ECO "E81"]
[WhiteElo "2434"]
[BlackElo "2582"]
[Annotator "ChessBase"]
[PlyCount "127"]
[EventDate "2018.07.05"]
[EventType "swiss"]
[EventCountry "ESP"]
[SourceTitle "playchess.com"]
[Source "ChessBase"]
[SourceQuality "1"]
[TimeControl "5400+30"]

1. d4 {[%emt 0:00:00]} Nf6 {[%emt 0:00:00]} 2. c4 {[%emt 0:00:00]} d6 {[%emt 0:00:00]} 3. Nc3 {[%emt 0:00:19]} g6 {[%emt 0:00:00]} 4. e4 {[%emt 0:00:11]} Bg7 {[%emt 0:00:00]} 5. f3 {[%emt 0:00:07]} O-O {[%emt 0:00:00]} 6. Be3 {[%emt 0:00:05]} c6 {[%emt 0:00:14]} 7. Qd2 {[%emt 0:01:24]} a6 {[%emt 0:00:06]} 8. O-O-O {[%emt 0:01:38]} b5 {[%emt 0:00:08]} 9. h4 {[%emt 0:01:14]} h5 {[%emt 0:01:36]} 10. g4 {[%emt 0:11:13]} Qa5 {[%emt 0:01:04]} 11. Kb1 {[%emt 0:17:31]} e5 {[%emt 0:00:42]} 12. dxe5 {[%emt 0:04:18]} dxe5 {[%emt 0:00:10]} 13. Bh6 {[%emt 0:05:09]} Nbd7 {[%emt 0:05:12]} 14. Bxg7 {[%emt 0:03:54]} Kxg7 {[%emt 0:00:08]} 15. g5 {[%emt 0:01:46]} Ne8 {[%emt 0:00:23]} 16. Nh3 {[%emt 0:10:31]} Nb6 {[%emt 0:15:23]} 17. c5 {[%emt 0:06:49]} Nd7 {[%emt 0:00:15]} 18. Ne2 {[%emt 0:00:16]} Qxd2 {[%emt 0:05:42]} 19. Rxd2 {[%emt 0:00:04]} Nc7 {[%emt 0:03:55]} 20. Rd6 {[%emt 0:04:24]} Ne6 {[%emt 0:01:14]} 21. Rxc6 {[%emt 0:02:21]} Bb7 {[%emt 0:00:19]} 22. Rd6 {[%emt 0:00:05]} Ndxc5 {[%emt 0:00:07]} 23. Bg2 {[%emt 0:00:24]} b4 {[%emt 0:00:09]} 24. Rhd1 {[%emt 0:01:35]} a5 {[%emt 0:00:55]} 25. Nf2 {[%emt 0:01:53]} Ba6 {[%emt 0:06:10]} 26. Nc1 {[%emt 0:00:56]} Nf4 {[%emt 0:01:55]} 27. Bh3 {[%emt 0:05:41]} a4 {[%emt 0:05:34]} 28. Rc6 {[%emt 0:02:48]} Nxh3 {[%emt 0:00:16]} 29. Nxh3 {[%emt 0:00:07]} Rfc8 {[%emt 0:00:14]} 30. Rxc8 {[%emt 0:02:52]} Rxc8 {[%emt 0:01:01]} 31. Rd5 {[%emt 0:01:26]} Bc4 {[%emt 0:02:02]} 32. Rd2 {[%emt 0:00:16]} b3 {[%emt 0:06:24]} 33. axb3 {[%emt 0:03:54]} axb3 {[%emt 0:00:08]} 34. Nf2 {[%emt 0:00:14]} Ne6 {[%emt 0:00:25]} 35. Ncd3 {[%emt 0:02:21]} Rd8 {[%emt 0:06:33]} 36. Kc1 {[%emt 0:00:21]} f6 {[%emt 0:02:55]} 37. gxf6+ {[%emt 0:02:28]} Kxf6 {[%emt 0:00:05]} 38. Rd1 {[%emt 0:00:10]} Nd4 {[%emt 0:01:07]} 39. Kd2 {[%emt 0:03:18]} Nxf3+ {[%emt 0:01:02]} 40. Kc3 {[%emt 0:00:05]} Be6 {[%emt 0:01:57]} 41. Nc5 {[%emt 0:02:17]} Rxd1 {[%emt 0:00:18]} 42. Nxd1 {[%emt 0:00:05]} Nxh4 {[%emt 0:00:08]} 43. Nxb3 {[%emt 0:01:33]} Nf3 {[%emt 0:01:16]} 44. Nc5 {[%emt 0:00:19]} Bc8 {[%emt 0:03:15]} 45. b4 {[%emt 0:00:29]} Nd4 {[%emt 0:00:36]} 46. Ne3 {[%emt 0:00:12]} h4 {[%emt 0:00:19]} 47. Kc4 {[%emt 0:00:34]} Nf3 {[%emt 0:02:34]} 48. b5 {[%emt 0:00:37]} h3 {[%emt 0:01:48]} 49. b6 {[%emt 0:01:06]} Kg5 {[%emt 0:01:56]} 50. Nf1 {[%emt 0:00:50]} h2 {[%emt 0:04:55]} 51. Nxh2 {[%emt 0:01:14]} Nxh2 {[%emt 0:00:02]} 52. Kd5 {[%emt 0:00:37]} Nf3 {[%emt 0:01:35]} 53. Kd6 {[%emt 0:00:13]} Nd2 {[%emt 0:00:06]} 54. Kc7 {[%emt 0:02:06]} Nc4 {[%emt 0:00:05]} 55. Kxc8 {[%emt 0:00:23]} Nxb6+ {[%emt 0:00:02]} 56. Kc7 {[%emt 0:00:04]} Nc4 {[%emt 0:00:11]} 57. Kc6 {[%emt 0:00:11]} Kf4 {[%emt 0:00:45]} 58. Kd5 {[%emt 0:00:08]} Ne3+ {[%emt 0:00:04]} 59. Ke6 {[%emt 0:00:08]} g5 {[%emt 0:05:03]} 60. Nd3+ {[%emt 0:00:08]} Kxe4 {[%emt 0:00:02]} 61. Nxe5 {[%emt 0:00:06]} Nd5 {[%emt 0:00:09]} 62. Ng4 {[%emt 0:00:43]} Ne3 {[%emt 0:01:35]} 63. Kf6 {[%emt 0:00:34]} Nxg4+ {[%emt 0:00:03]} 64. Kxg5 {[%emt 0:00:03]} 1/2-1/2

[Event "XXXVIII Benasque Open 2018"]
[Site "Benasque"]
[Date "2018.07.10"]
[Round "6"]
[White "Lopez Mulet, Inigo"]
[Black "Kharitonov, Alexandr"]
[Result "0-1"]
[ECO "E01"]
[WhiteElo "2378"]
[BlackElo "2564"]
[Annotator "ChessBase"]
[PlyCount "66"]
[EventDate "2018.07.05"]
[EventType "swiss"]
[EventCountry "ESP"]
[SourceTitle "playchess.com"]
[Source "ChessBase"]
[SourceQuality "1"]
[TimeControl "5400+30"]

1. d4 {[%emt 0:00:00]} Nf6 {[%emt 0:00:00]} 2. c4 {[%emt 0:00:16]} e6 {[%emt 0:00:06]} 3. g3 {[%emt 0:00:09]} c5 {[%emt 0:00:06]} 4. Nf3 {[%emt 0:03:33]} cxd4 {[%emt 0:00:58]} 5. Nxd4 {[%emt 0:00:07]} d5 {[%emt 0:00:32]} 6. Bg2 {[%emt 0:00:21]} e5 {[%emt 0:00:32]} 7. Nf3 {[%emt 0:00:08]} d4 {[%emt 0:00:33]} 8. O-O {[%emt 0:00:11]} Nc6 {[%emt 0:00:13]} 9. e3 {[%emt 0:00:26]} Be7 {[%emt 0:00:25]} 10. exd4 {[%emt 0:00:18]} exd4 {[%emt 0:00:10]} 11. Bf4 {[%emt 0:07:50]} Be6 {[%emt 0:00:18]} 12. Nbd2 {[%emt 0:06:47]} O-O {[%emt 0:01:56]} 13. Ne5 {[%emt 0:03:01]} Nxe5 {[%emt 0:05:52]} 14. Bxe5 {[%emt 0:00:09]} Ng4 {[%emt 0:00:35]} 15. Re1 {[%emt 0:16:34]} Nxe5 {[%emt 0:04:25]} 16. Rxe5 {[%emt 0:00:07]} Qc7 {[%emt 0:04:38]} 17. Rb5 {[%emt 0:08:40]} Rab8 {[%emt 0:00:40]} 18. Rc1 {[%emt 0:00:57]} Rfd8 {[%emt 0:04:45]} 19. Nf3 {[%emt 0:20:27]} d3 {[%emt 0:11:54]} 20. Ng5 {[%emt 0:04:38]} Bxg5 {[%emt 0:12:17]} 21. Rxg5 Rd4 22. Qd2 {[%emt 0:07:33]} Rxc4 {[%emt 0:03:02]} 23. Rxc4 {[%emt 0:03:23]} Qxc4 {[%emt 0:00:26]} 24. Bf1 {[%emt 0:04:08]} h6 {[%emt 0:09:23]} 25. Re5 {[%emt 0:07:24]} Rd8 {[%emt 0:00:54]} 26. Re1 {[%emt 0:03:51]} Qxa2 {[%emt 0:03:38]} 27. Re3 {[%emt 0:01:56]} Bf5 {[%emt 0:01:43]} 28. g4 {[%emt 0:00:29]} Bg6 {[%emt 0:00:53]} 29. f4 {[%emt 0:00:28]} Qc4 {[%emt 0:00:11]} 30. Bg2 {[%emt 0:00:37]} Qc2 {[%emt 0:00:50]} 31. Re2 {[%emt 0:00:30]} dxe2 {[%emt 0:01:44]} 32. Qxd8+ {[%emt 0:00:04]} Kh7 {[%emt 0:00:03]} 33. Qe7 {[%emt 0:00:06]} Qd2 {[%emt 0:00:32]} 0-1

[Event "XXXVIII Benasque Open 2018"]
[Site "Benasque"]
[Date "2018.07.10"]
[Round "6"]
[White "Domingo Nunez, Alejandro"]
[Black "Banusz, Tamas"]
[Result "0-1"]
[ECO "C55"]
[WhiteElo "2369"]
[BlackElo "2607"]
[Annotator "ChessBase"]
[PlyCount "72"]
[EventDate "2018.07.05"]
[EventType "swiss"]
[EventCountry "ESP"]
[SourceTitle "playchess.com"]
[Source "ChessBase"]
[SourceQuality "1"]
[TimeControl "5400+30"]

1. e4 {[%emt 0:00:00]} e5 {[%emt 0:02:32]} 2. Nf3 {[%emt 0:00:00]} Nc6 {[%emt 0:00:04]} 3. Bc4 {[%emt 0:00:00]} Nf6 {[%emt 0:00:04]} 4. d3 {[%emt 0:00:03]} h6 {[%emt 0:00:10]} 5. O-O {[%emt 0:00:26]} d6 {[%emt 0:00:06]} 6. c3 {[%emt 0:00:03]} g6 {[%emt 0:00:12]} 7. Re1 {[%emt 0:00:59]} Bg7 {[%emt 0:00:05]} 8. h3 {[%emt 0:00:36]} O-O {[%emt 0:00:07]} 9. Bb3 {[%emt 0:00:03]} a6 {[%emt 0:01:57]} 10. d4 {[%emt 0:06:59]} Re8 {[%emt 0:02:24]} 11. Nbd2 {[%emt 0:01:22]} b5 {[%emt 0:06:48]} 12. a4 {[%emt 0:06:44]} Bb7 {[%emt 0:03:32]} 13. d5 {[%emt 0:08:54]} Ne7 {[%emt 0:01:08]} 14. c4 {[%emt 0:04:30]} c6 {[%emt 0:06:18]} 15. dxc6 {[%emt 0:02:53]} Bxc6 {[%emt 0:09:10]} 16. axb5 {[%emt 0:00:09]} axb5 {[%emt 0:00:05]} 17. Rxa8 {[%emt 0:00:04]} Qxa8 {[%emt 0:01:30]} 18. cxb5 {[%emt 0:00:04]} Bxe4 {[%emt 0:01:32]} 19. Nxe4 {[%emt 0:06:41]} Nxe4 {[%emt 0:00:02]} 20. Bc2 {[%emt 0:06:18]} f5 {[%emt 0:02:47]} 21. Bxe4 {[%emt 0:06:07]} fxe4 {[%emt 0:00:02]} 22. Qb3+ {[%emt 0:00:04]} Kh7 {[%emt 0:05:15]} 23. Nd2 {[%emt 0:00:58]} d5 {[%emt 0:00:05]} 24. Qb4 {[%emt 0:00:03]} Qb7 {[%emt 0:07:05]} 25. Nb3 {[%emt 0:03:46]} Rb8 {[%emt 0:02:27]} 26. Na5 {[%emt 0:03:58]} Qxb5 {[%emt 0:00:25]} 27. Qxe7 {[%emt 0:00:21]} Qxa5 {[%emt 0:00:04]} 28. Rd1 {[%emt 0:06:56]} Qb5 {[%emt 0:04:54]} 29. Qd6 {[%emt 0:07:59]} d4 {[%emt 0:05:00]} 30. Re1 {[%emt 0:02:33]} Qb7 {[%emt 0:02:55]} 31. Qe6 {[%emt 0:03:01]} Rc8 {[%emt 0:00:56]} 32. h4 {[%emt 0:01:19]} Rc2 {[%emt 0:12:22]} 33. h5 {[%emt 0:00:37]} gxh5 {[%emt 0:00:01]} 34. Qf5+ {[%emt 0:01:31]} Kg8 {[%emt 0:00:56]} 35. Bxh6 {[%emt 0:03:45]} Bxh6 {[%emt 0:01:03]} 36. Qe6+ {[%emt 0:00:03]} Qf7 {[%emt 0:00:12]} 0-1